bitfinex/quotes_SOLUSD_20220307
["timestamp","ask_amount","ask_price","bid_price","bid_amount"]
[1646644561091,6.04,82.806,82.742,22.8713]
[1646644561592,26.80291624,82.805,82.742,22.8713]
[1646644561792,6.04,82.804,82.742,22.8713]
[1646644562192,18.1385,82.79,82.742,22.8713]
[1646644562393,69.87679843,82.789,82.742,22.8713]
[1646644563193,8.87713526,82.818,82.742,22.8713]
[1646644563392,6.041,82.818,82.743,23.2138]
[1646644563593,6.04,82.829,82.743,23.2138]
[1646644563796,30.7123,82.829,82.743,23.2138]
[1646644563993,26.80291624,82.828,82.743,23.2138]
[1646644564196,6.039,82.827,82.743,23.2138]
[1646644564395,5.05737399,82.826,82.743,23.2138]
[1646644564597,6.039,82.825,82.743,23.2138]
[1646644564796,18.1315,82.82,82.743,23.2138]
[1646644564996,18.1315,82.82,82.742,22.8713]
[1646644564997,4.67479267,82.817,82.742,22.8713]
[1646644565198,4.67479267,82.817,82.713,22.9441]
[1646644565199,49.65390964,82.815,82.713,22.9441]
[1646644565399,6.041,82.814,82.713,22.9441]
[1646644565798,49.70895681,82.799,82.713,44.97121359]
[1646644565999,6.041,82.798,82.713,44.97121359]
[1646644566298,6.041,82.798,82.714,11.60501016]
[1646644566701,6.041,82.798,82.713,22.9441]
[1646644569001,6.041,82.798,82.713,44.97121359]
[1646644569202,55.74995681,82.799,82.714,11.60501016]
[1646644569404,6.041,82.816,82.714,11.60501016]
[1646644569704,6.041,82.816,82.715,22.02711359]
[1646644569904,6.3100546,82.815,82.72,14.68]
[1646644570104,6.041,82.814,82.721,120.4]
[1646644570305,56.29516927,82.813,82.721,142.42711359]
[1646644570506,6.041,82.812,82.721,154.03212375]
[1646644572317,6.041,82.812,82.723,120.4]
[1646644572517,6.041,82.812,82.73,18.1279]
[1646644573121,6.041,82.812,82.731,23.9906]
[1646644573421,126.441,82.812,82.731,23.9906]
[1646644573617,6.041,82.812,82.731,23.9906]
[1646644574020,126.441,82.812,82.731,23.9906]
[1646644574218,6.041,82.812,82.731,23.9906]
[1646644574518,18.1329,82.81,82.731,23.9906]
[1646644574717,6.04,82.809,82.731,23.9906]
[1646644575522,18.1352,82.8,82.731,23.9906]
[1646644575724,120.4,82.798,82.731,23.9906]
[1646644576118,120.4,82.796,82.731,23.9906]
[1646644576318,120.4,82.794,82.731,23.9906]
[1646644576617,120.4,82.792,82.731,23.9906]
[1646644576818,6.041,82.793,82.731,23.9906]
[1646644576819,120.4,82.79,82.731,23.9906]
[1646644577019,120.4,82.788,82.731,23.9906]
[1646644577218,18.1402,82.78,82.731,23.9906]
[1646644577419,55.42466275,82.779,82.702,24.1505]
[1646644577719,55.42466275,82.779,82.702,48.3581]
[1646644577918,120.4,82.778,82.702,48.3581]
[1646644578118,6.043,82.777,82.702,48.3581]
[1646644578321,54.27353123,82.759,82.702,48.3581]
[1646644578519,6.043,82.758,82.702,48.3581]
[1646644579023,6.043,82.78,82.702,48.3581]
[1646644579227,6.042,82.791,82.703,120.4]
[1646644579428,6.042,82.791,82.711,120.4]
[1646644579628,20.89103526,82.823,82.721,120.4]
[1646644579629,6.042,82.807,82.721,120.4]
[1646644579829,6.041,82.819,82.731,120.4]
[1646644580029,0.0001,82.819,82.733,120.4]
[1646644580233,1.6291134,82.855,82.735,192.68]
[1646644580431,1.6291134,82.857,82.752,72.28]
[1646644580637,1.6291134,82.857,82.761,120.4]
[1646644580835,1.6291134,82.861,82.771,120.4]
[1646644581029,62.64290681,82.86,82.773,120.4]
[1646644581433,62.64290681,82.86,82.78,138.5104]
[1646644581630,62.64290681,82.86,82.78,153.1904]
[1646644581835,65.47904207,82.86,82.78,135.08]
[1646644582743,62.64290681,82.86,82.78,135.08]
[1646644583034,62.64290681,82.86,82.78,14.68]
[1646644584334,62.64290681,82.86,82.772,23.1732]
[1646644586545,62.64290681,82.86,82.773,120.4]
[1646644588144,4.46524866,82.879,82.774,24.12444692]
[1646644588343,4.46524866,82.879,82.775,120.4]
[1646644588546,2.83613526,82.879,82.781,120.4]
[1646644588744,1.6291134,82.89,82.781,120.4]
[1646644589143,73.64019804,82.958,82.783,120.4]
[1646644589144,1.6291134,82.891,82.783,120.4]
[1646644589345,1.6291134,82.896,82.791,120.4]
[1646644589546,64.36807804,82.897,82.801,120.4]
[1646644589845,64.36807804,82.897,82.803,120.4]
[1646644590046,64.36807804,82.897,82.802,24.6958]
[1646644590449,1.6291134,82.895,82.802,24.6958]
[1646644590650,64.36807804,82.897,82.802,24.6958]
[1646644591051,62.73896464,82.897,82.802,24.6958]
[1646644591349,18.1155,82.89,82.802,24.6958]
[1646644591749,2.83613526,82.889,82.802,24.6958]
[1646644591949,27.67248107,82.889,82.802,24.6958]
[1646644592349,18.118,82.88,82.802,24.6958]
[1646644592648,62.37639106,82.879,82.802,24.6958]
[1646644593049,2.83613526,82.878,82.802,24.6958]
[1646644593449,62.37639106,82.879,82.802,24.6958]
[1646644594750,2.83613526,82.878,82.802,24.6958]
[1646644595152,62.37639106,82.879,82.802,24.6958]
[1646644596957,2.83613526,82.878,82.802,24.6958]
[1646644597555,24.83634581,82.877,82.802,24.6958]
[1646644597785,33.30634581,82.877,82.802,24.6958]
[1646644597977,18.12,82.87,82.802,24.6958]
[1646644598378,2.83613526,82.869,82.802,24.6958]
[1646644598983,18.12,82.87,82.802,24.6958]
[1646644599180,2.83613526,82.869,82.802,24.6958]
[1646644599580,18.12,82.87,82.802,24.6958]
[1646644601085,123.23613526,82.869,82.77,14.68]
[1646644601285,123.23613526,82.869,82.72,243.9733]
[1646644601286,18.1267,82.84,82.771,47.2078]
[1646644601490,51.30397809,82.839,82.771,47.2078]
[1646644601684,5.78525268,82.837,82.763,6.038]
[1646644601886,5.78525268,82.837,82.712,151.2109]
[1646644602084,5.62871437,82.837,82.723,5.80250508]
[1646644602285,60.4466,82.83,82.724,24.0439]
[1646644602487,75.1266,82.83,82.725,6.04]
[1646644602686,2.83613526,82.829,82.725,6.04]
[1646644603084,18.1314,82.82,82.725,6.04]
[1646644603284,61.44085932,82.819,82.725,6.04]
[1646644603784,61.44085932,82.819,82.726,120.4]
[1646644603988,61.44085932,82.819,82.728,120.4]
[1646644604184,61.44085932,82.819,82.73,120.4]
[1646644604385,61.44085932,82.819,82.731,6.04]
[1646644605286,61.44085932,82.819,82.727,120.4]
[1646644605486,61.44085932,82.819,82.729,120.4]
[1646644605685,61.44085932,82.819,82.73,126.44]
[1646644606386,61.44085932,82.819,82.731,5.80250508]
[1646644606688,61.44085932,82.819,82.733,120.4]
[1646644606886,61.44085932,82.819,82.735,120.4]
[1646644607287,61.44085932,82.819,82.737,120.4]
[1646644607487,61.44085932,82.819,82.739,120.4]
[1646644608288,12.61617957,82.838,82.739,120.4]
[1646644608490,2.83613526,82.849,82.751,120.4]
[1646644608689,2.83613526,82.849,82.753,120.4]
[1646644608889,2.83613526,82.849,82.754,6.038]
[1646644609088,2.83613526,82.849,82.753,6.038]
[1646644609291,47.37590492,82.848,82.752,23.1775]
[1646644609488,18.1264,82.84,82.752,23.1775]
[1646644611997,2.83613526,82.839,82.752,23.1775]
[1646644612292,63.03288918,82.829,82.752,23.1775]
[1646644612492,63.03288918,82.829,82.753,6.039]
[1646644615496,63.03288918,82.829,82.752,23.1775]
[1646644616098,2.83613526,82.828,82.752,23.1775]
[1646644616502,63.03288918,82.829,82.752,23.1775]
[1646644616898,2.83613526,82.828,82.752,23.1775]
[1646644617900,63.03288918,82.829,82.752,23.1775]
[1646644618298,2.83613526,82.828,82.752,23.1775]
[1646644618702,63.03288918,82.829,82.752,23.1775]
[1646644621004,63.03288918,82.829,82.753,6.039]
[1646644622207,2.83613526,82.845,82.753,6.039]
[1646644622405,1.6291134,82.849,82.753,6.039]
[1646644622606,1.6291134,82.849,82.754,120.4]
[1646644622806,1.6291134,82.853,82.761,120.4]
[1646644623005,1.6291134,82.866,82.763,120.4]
[1646644623205,51.15655402,82.862,82.764,6.037]
[1646644623405,51.15655402,82.862,82.763,6.037]
[1646644623606,51.15655402,82.862,82.762,24.8616]
[1646644623806,51.15655402,82.862,82.764,24.48913236]
[1646644624012,51.15655402,82.862,82.765,6.037]
[1646644624209,51.15655402,82.862,82.77,32.797]
[1646644624612,51.15655402,82.862,82.771,6.037]
[1646644624812,51.15655402,82.862,82.772,45.913]
[1646644625611,120.4,82.859,82.772,45.913]
[1646644626010,122.0291134,82.857,82.772,45.913]
[1646644626211,4.72399985,82.856,82.772,45.913]
[1646644626509,1.6291134,82.845,82.772,45.913]
[1646644626711,55.54972484,82.844,82.772,45.913]
[1646644627109,18.1262,82.84,82.772,45.913]
[1646644627314,120.4,82.839,82.772,45.913]
[1646644627511,1.6291134,82.837,82.772,45.913]
[1646644627911,1.6291134,82.837,82.751,24.87]
[1646644628110,18.1286,82.83,82.752,22.96]
[1646644628310,49.92133056,82.829,82.752,22.96]
[1646644628511,49.92133056,82.829,82.753,6.039]
[1646644630913,49.92133056,82.829,82.754,120.4]
[1646644631111,49.92133056,82.829,82.756,120.4]
[1646644631312,49.92133056,82.829,82.757,6.039]
[1646644631735,1.6291134,82.84,82.758,120.4]
[1646644631932,23.6711,82.843,82.76,120.4]
[1646644632333,23.6711,82.843,82.761,6.038]
[1646644632635,58.66266566,82.846,82.762,46.6886]
[1646644632833,1.6291134,82.844,82.763,6.038]
[1646644633634,1.6291134,82.844,82.762,46.6886]
[1646644634138,1.6291134,82.841,82.762,46.6886]
[1646644634337,1.6291134,82.837,82.762,46.6886]
[1646644634736,57.03355226,82.846,82.762,46.6886]
[1646644634737,1.6291134,82.836,82.762,46.6886]
[1646644635537,1.6291134,82.835,82.762,46.6886]
[1646644635938,45.66877606,82.833,82.762,46.6886]
[1646644636141,1.6291134,82.832,82.762,46.6886]
[1646644638041,18.1288,82.83,82.762,46.6886]
[1646644638241,1.6291134,82.824,82.762,46.6886]
[1646644638441,1.6291134,82.823,82.762,46.6886]
[1646644638641,1.6291134,82.826,82.762,46.6886]
[1646644638841,1.6291134,82.825,82.762,46.6886]
[1646644639543,1.6291134,82.826,82.762,46.6886]
[1646644639742,1.6291134,82.822,82.762,46.6886]
[1646644640244,62.04695441,82.819,82.762,46.6886]
[1646644641345,62.04695441,82.819,82.738,6.038]
[1646644641546,18.1328,82.81,82.738,6.038]
[1646644641747,138.5328,82.81,82.738,6.038]
[1646644641944,1.6291134,82.794,82.738,6.038]
[1646644642145,30.86588983,82.809,82.738,6.038]
[1646644642146,1.6291134,82.792,82.738,6.038]
[1646644642346,1.6291134,82.791,82.738,6.038]
[1646644642748,1.6291134,82.79,82.738,6.038]
[1646644642950,18.1402,82.78,82.738,6.038]
[1646644643148,62.21396289,82.779,82.738,6.038]
[1646644644349,18.1416,82.77,82.702,41.193]
[1646644644951,18.1416,82.77,82.702,23.3198]
[1646644646652,18.1416,82.77,82.682,23.6075]
[1646644646854,2.83613526,82.769,82.683,24.583]
[1646644647053,58.73391518,82.749,82.683,24.583]
[1646644647854,17.51613526,82.78,82.684,120.4]
[1646644648156,2.83613526,82.781,82.684,120.4]
[1646644648354,2.83613526,82.78,82.684,120.4]
[1646644648754,61.63410002,82.779,82.684,120.4]
[1646644649556,2.83613526,82.778,82.684,120.4]
[1646644649758,4.1324268,82.777,82.683,24.583]
[1646644649957,29.61324362,82.778,82.683,24.583]
[1646644650156,2.83613526,82.776,82.683,24.583]
[1646644650361,18.1416,82.77,82.683,24.583]
[1646644650759,18.1416,82.77,82.684,120.4]
[1646644652359,26.77710836,82.769,82.684,120.4]
[1646644653058,2.83613526,82.776,82.684,120.4]
[1646644653059,30.86588983,82.776,82.684,120.4]
[1646644653261,61.63410002,82.779,82.684,120.4]
[1646644653458,61.63410002,82.779,82.691,122.6968794]
[1646644658267,61.63410002,82.779,82.691,2.2968794]
[1646644658471,61.63410002,82.779,82.691,122.6968794]
[1646644659168,2.83613526,82.778,82.691,122.6968794]
[1646644659569,2.83613526,82.778,82.691,2.2968794]
[1646644659772,18.1419,82.77,82.691,2.2968794]
[1646644660671,23.767,82.777,82.692,120.4]
[1646644660871,61.63410002,82.779,82.694,120.4]
[1646644661473,61.63410002,82.779,82.695,24.64889378]
[1646644661674,61.63410002,82.779,82.696,120.4]
[1646644662174,61.63410002,82.779,82.701,120.4]
[1646644662774,24.4873,82.795,82.701,120.4]
[1646644662975,23.3686,82.806,82.703,120.4]
[1646644663175,23.3686,82.806,82.702,11.60501016]
[1646644663176,23.3686,82.806,82.711,120.4]
[1646644663378,23.3347,82.825,82.721,120.4]
[1646644663578,23.3347,82.825,82.731,120.4]
[1646644663777,23.3347,82.825,82.73,14.68]
[1646644663778,52.08138534,82.824,82.733,120.4]
[1646644664175,23.3686,82.836,82.733,120.4]
[1646644664378,23.3686,82.836,82.735,120.4]
[1646644664776,23.3686,82.836,82.735,145.04889378]
[1646644665198,50.23408889,82.835,82.741,120.4]
[1646644665595,2.83613526,82.834,82.743,120.4]
[1646644667702,2.83613526,82.834,82.742,47.5294]
[1646644668102,18.129,82.83,82.742,47.5294]
[1646644668398,1.6291134,82.827,82.742,47.5294]
[1646644668598,1.6291134,82.826,82.742,47.5294]
[1646644668804,1.6291134,82.824,82.742,47.5294]
[1646644668998,53.95855299,82.822,82.742,47.5294]
[1646644669400,2.83613526,82.821,82.742,47.5294]
[1646644669600,18.1348,82.81,82.742,47.5294]
[1646644669799,54.05869956,82.809,82.742,47.5294]
[1646644670602,61.42869956,82.809,82.742,47.5294]
[1646644670904,18.1352,82.8,82.713,23.2543]
[1646644671105,18.1352,82.8,82.716,47.0404]
[1646644671503,2.83613526,82.799,82.716,47.0404]
[1646644672002,61.42869956,82.809,82.717,120.4]
[1646644672402,64.26483482,82.809,82.717,145.04889378]
[1646644672903,64.26483482,82.809,82.717,24.64889378]
[1646644673403,64.26483482,82.809,82.718,120.4]
[1646644674003,56.89483482,82.809,82.718,120.4]
[1646644674806,58.52394822,82.809,82.718,120.4]
[1646644675105,18.1352,82.8,82.716,47.0404]
[1646644675606,2.83613526,82.799,82.716,47.0404]
[1646644676008,18.1382,82.79,82.716,47.0404]
[1646644676206,62.65674233,82.789,82.716,47.0404]
[1646644676508,65.49287759,82.789,82.716,47.0404]
[1646644676707,2.83613526,82.788,82.716,47.0404]
[1646644676910,8.95613526,82.788,82.716,47.0404]
[1646644677307,2.83613526,82.787,82.716,47.0404]
[1646644678106,18.1423,82.77,82.716,47.0404]
[1646644678307,55.95579471,82.769,82.716,47.0404]
[1646644687024,55.95579471,82.769,82.716,46.5404]
[1646644691923,55.95579471,82.769,82.717,120.4]
[1646644692122,6.12,82.788,82.717,120.4]
[1646644692325,6.12,82.788,82.718,5.80250508]
[1646644692522,6.12,82.788,82.719,126.442]
[1646644692722,6.12,82.788,82.719,153.45989518]
[1646644692923,6.12,82.788,82.72,27.01789518]
[1646644693124,62.92315722,82.787,82.721,126.442]
[1646644693928,6.12,82.788,82.721,126.442]
[1646644694124,6.12,82.788,82.723,120.4]
[1646644694325,6.12,82.788,82.725,120.4]
[1646644694625,6.12,82.788,82.731,120.4]
[1646644694831,6.12,82.788,82.741,120.4]
[1646644695029,6.12,82.788,82.743,120.4]
[1646644695425,6.12,82.788,82.745,120.4]
[1646644695625,6.12,82.788,82.747,120.4]
[1646644695826,6.12,82.788,82.749,120.4]
[1646644696026,6.12,82.788,82.75,6.04]
[1646644696626,6.12,82.788,82.73,14.68]
[1646644697226,6.12,82.788,82.727,24.1083]
[1646644697626,6.12,82.788,82.71,14.68]
[1646644697826,6.12,82.788,82.7,6.041]
[1646644698227,4.46524866,82.787,82.691,6.042]
[1646644698628,1.6291134,82.786,82.691,6.042]
[1646644698828,4.46524866,82.787,82.692,120.4]
[1646644699028,1.6291134,82.785,82.694,120.4]
[1646644699229,18.1395,82.78,82.696,120.4]
[1646644699430,18.1395,82.78,82.698,120.4]
[1646644699827,18.1395,82.78,82.699,6.042]
[1646644700032,1.6291134,82.786,82.717,120.4]
[1646644700230,51.93139421,82.79,82.717,120.4]
[1646644700832,51.93139421,82.79,82.719,120.4]
[1646644701229,51.93139421,82.79,82.721,120.4]
[1646644701431,51.93139421,82.79,82.723,120.4]
[1646644701629,51.93139421,82.79,82.711,18.5482]
[1646644701630,51.93139421,82.79,82.725,120.4]
[1646644702032,51.93139421,82.79,82.727,120.4]
[1646644702232,51.93139421,82.79,82.728,126.441]
[1646644702434,51.93139421,82.79,82.728,120.4]
[1646644703233,51.93139421,82.79,82.717,120.4]
[1646644703633,51.93139421,82.79,82.719,120.4]
[1646644703835,51.93139421,82.79,82.72,6.041]
[1646644704036,51.93139421,82.79,82.721,120.4]
[1646644704437,51.93139421,82.79,82.711,18.5482]
[1646644704638,70.06879421,82.79,82.711,18.5482]
[1646644705240,71.69790761,82.79,82.711,18.5482]
[1646644705438,70.06879421,82.79,82.711,18.5482]
[1646644705842,70.06879421,82.79,82.717,6.042]
[1646644706959,70.06879421,82.79,82.695,120.4]
[1646644707162,1.6291134,82.789,82.697,120.4]
[1646644707359,1.6291134,82.789,82.699,120.4]
[1646644707559,1.6291134,82.789,82.701,120.4]
[1646644707762,1.6291134,82.789,82.702,6.042]
[1646644708161,18.14,82.78,82.702,6.042]
[1646644708361,1.6291134,82.778,82.69,46.3575]
[1646644708761,1.6291134,82.777,82.69,46.3575]
[1646644709162,18.1417,82.77,82.69,46.3575]
[1646644709963,50.38640264,82.776,82.692,120.4]
[1646644710164,50.38640264,82.776,82.69,46.3575]
[1646644710165,23.4971,82.776,82.694,120.4]
[1646644710369,23.4971,82.776,82.696,120.4]
[1646644711564,23.4971,82.776,82.697,120.4]
[1646644712564,23.4971,82.776,82.692,120.4]
[1646644713563,23.4971,82.776,82.691,6.043]
[1646644713764,23.4971,82.776,82.692,120.4]
[1646644716873,18.1416,82.77,82.692,120.4]
[1646644717073,23.4971,82.776,82.692,120.4]
[1646644717273,23.4971,82.776,82.694,120.4]
[1646644718476,23.4971,82.776,82.695,120.4]
[1646644718676,23.4971,82.776,82.691,6.043]
[1646644719978,23.4971,82.776,82.692,120.4]
[1646644722677,23.4971,82.776,82.691,6.043]
[1646644723882,18.1422,82.77,82.691,6.043]
[1646644726886,46.66061604,82.77,82.691,6.043]
[1646644727487,1.6291134,82.769,82.691,6.043]
[1646644727886,26.88930264,82.77,82.691,6.043]
[1646644727887,18.1468,82.75,82.691,6.043]
[1646644728086,46.60459313,82.749,82.691,6.043]
[1646644734696,2.83613526,82.748,82.691,6.043]
[1646644734897,31.71877123,82.748,82.691,6.043]
[1646644735298,28.88263597,82.748,82.69,46.3575]
[1646644735499,31.71877123,82.748,82.7,100.0]
[1646644735696,18.1483,82.74,82.7,100.0]
[1646644736500,46.60459313,82.749,82.7,100.0]
[1646644744027,2.83613526,82.748,82.7,100.0]
[1646644745127,18.1481,82.74,82.7,100.0]
[1646644745528,1.6291134,82.747,82.7,100.0]
[1646644745729,2.83613526,82.748,82.7,100.0]
[1646644747530,18.1484,82.74,82.7,100.0]
[1646644748330,2.83613526,82.748,82.7,100.0]
[1646644748632,46.60459313,82.749,82.7,100.0]
[1646644758336,49.44072839,82.749,82.7,100.0]
[1646644758636,46.60459313,82.749,82.7,100.0]
[1646644766539,26.62930264,82.748,82.7,100.0]
[1646644766945,26.62930264,82.748,82.688,24.5427]
[1646644766946,31.0945513,82.748,82.688,24.5427]
[1646644767140,1.6291134,82.743,82.68,22.8718]
[1646644767342,18.1522,82.72,82.68,22.8718]
[1646644768343,46.15166954,82.719,82.68,22.8718]
[1646644784476,29.4654379,82.718,82.652,29.4265]
[1646644784673,120.4,82.717,82.652,23.3835]
[1646644784874,0.28070349,82.716,82.652,23.3835]
[1646644785076,47.58242611,82.716,82.652,23.3835]
[1646644785278,0.28070349,82.714,82.652,23.3835]
[1646644785475,1.6291134,82.707,82.641,23.4266]
[1646644785674,120.4,82.709,82.641,23.4266]
[1646644785675,1.90981689,82.706,82.641,23.4266]
[1646644785875,1.6291134,82.705,82.641,23.4266]
[1646644786075,1.6291134,82.701,82.641,23.4266]
[1646644786275,1.90981689,82.7,82.641,23.4266]
[1646644786475,82.87801817,82.7,82.641,23.4266]
[1646644786675,26.62930264,82.699,82.641,23.4266]
[1646644786874,0.28070349,82.698,82.641,23.4266]
[1646644787075,2.83613526,82.698,82.641,23.4266]
[1646644787374,18.1598,82.69,82.641,23.4266]
[1646644788276,0.28070349,82.689,82.641,23.4266]
[1646644788475,18.1617,82.68,82.641,23.4266]
[1646644788675,18.1617,82.68,82.606,24.4411]
[1646644789078,29.67827488,82.679,82.606,24.4411]
[1646644789280,53.95808974,82.678,82.606,24.4411]
[1646644789480,0.21283698,82.677,82.606,24.4411]
[1646644790080,111.36872081,82.678,82.606,24.4411]
[1646644791080,18.164,82.67,82.606,24.4411]
[1646644795187,26.67003597,82.677,82.606,24.4411]
[1646644799093,18.1635,82.67,82.606,24.4411]
[1646644799291,0.29640239,82.669,82.606,24.4411]
[1646644799492,26.96643836,82.669,82.606,24.4411]
[1646644799890,26.67003597,82.668,82.606,24.4411]
[1646644800292,120.4,82.667,82.606,24.4411]
[1646644800494,0.19105137,82.666,82.606,24.4411]
[1646644800693,120.4,82.665,82.606,24.4411]
[1646644800893,26.67003597,82.666,82.606,24.4411]
[1646644801093,18.1668,82.66,82.606,24.4411]
[1646644801300,62.64832669,82.659,82.606,24.4411]
[1646644806598,62.64832669,82.659,82.607,6.05]
[1646644807801,62.64832669,82.659,82.606,24.4411]
[1646644808002,2.83613526,82.658,82.593,6.05]
[1646644808200,2.83613526,82.658,82.592,24.0925]
[1646644808401,2.83613526,82.658,82.559,120.77315173]
[1646644808402,120.4,82.649,82.56,6.051]
[1646644808603,120.81379324,82.649,82.56,6.051]
[1646644808804,120.4,82.647,82.56,6.051]
[1646644809006,120.4,82.645,82.56,6.051]
[1646644809204,14.68,82.64,82.559,0.37315173]
[1646644809406,49.62507655,82.639,82.559,0.37315173]
[1646644809804,78.71745454,82.639,82.559,0.37315173]
[1646644810005,29.50617123,82.638,82.559,0.37315173]
[1646644810204,18.175,82.63,82.559,0.37315173]
[1646644810403,23.125,82.629,82.559,0.37315173]
[1646644810606,0.17026944,82.628,82.559,0.37315173]
[1646644810803,52.63117123,82.629,82.559,0.37315173]
[1646644811003,2.83613526,82.628,82.559,0.37315173]
[1646644811405,18.1748,82.62,82.559,0.37315173]
[1646644811608,61.37220634,82.619,82.559,0.37315173]
[1646644811806,64.02156428,82.619,82.559,0.37315173]
[1646644812006,87.85546499,82.619,82.559,0.37315173]
[1646644812207,2.83613526,82.618,82.559,0.37315173]
[1646644813611,61.18542902,82.619,82.559,0.37315173]
[1646644817430,23.51,82.618,82.559,0.37315173]
[1646644824038,26.66310264,82.617,82.559,0.37315173]
[1646644828143,61.18542902,82.619,82.559,0.37315173]
[1646644829646,61.18542902,82.619,82.559,18.56075173]
[1646644829844,61.18542902,82.619,82.56,24.4829]
[1646644830044,61.18542902,82.619,82.561,60.20989368]
[1646644831945,1.6291134,82.641,82.562,120.4]
[1646644832151,1.6291134,82.651,82.562,120.73325391]
[1646644832347,1.6291134,82.654,82.562,120.73325391]
[1646644832548,22.8402,82.676,82.565,0.33325391]
[1646644832549,1.6291134,82.664,82.565,0.33325391]
[1646644832748,1.6291134,82.67,82.565,0.33325391]
[1646644832948,59.77997695,82.669,82.568,0.33325391]
[1646644833151,59.77997695,82.669,82.582,60.35164811]
[1646644833351,59.77997695,82.669,82.583,143.9198]
[1646644833951,59.77997695,82.669,82.583,151.6898]
[1646644835062,59.77997695,82.669,82.583,143.9198]
[1646644837053,82.63061292,82.669,82.583,143.9198]
[1646644837255,1.6291134,82.667,82.583,23.5198]
[1646644837655,47.62423597,82.666,82.583,23.5198]
[1646644838759,24.7736,82.666,82.583,23.5198]
[1646644839959,24.7736,82.666,82.584,120.4]
[1646644841358,59.77997695,82.669,82.584,120.4]
[1646644841560,59.77997695,82.669,82.591,120.4]
[1646644844263,24.7538,82.668,82.591,120.4]
[1646644847167,51.10316931,82.668,82.591,120.4]
[1646644847968,26.34936931,82.668,82.591,120.4]
[1646644848367,59.77997695,82.669,82.591,120.4]
[1646644849669,59.77997695,82.669,82.593,0.1868197]
[1646644853979,83.70267959,82.669,82.593,0.1868197]
[1646644854178,1.6291134,82.667,82.593,0.1868197]
[1646644854379,0.47771464,82.666,82.593,0.1868197]
[1646644854580,26.02953068,82.666,82.593,0.1868197]
[1646644854780,50.2294006,82.665,82.593,0.1868197]
[1646644854979,0.47771464,82.664,82.593,0.1868197]
[1646644855180,18.1659,82.66,82.593,0.1868197]
[1646644855380,0.47771464,82.659,82.593,0.1868197]
[1646644855782,24.40041728,82.659,82.593,0.1868197]
[1646644855979,23.92270264,82.658,82.593,0.1868197]
[1646644856180,23.65781464,82.657,82.593,0.1868197]
[1646644856379,18.1682,82.65,82.593,0.1868197]
[1646644856600,61.89737272,82.649,82.593,0.1868197]
[1646644856800,61.71401287,82.649,82.593,0.1868197]
[1646644857999,0.1604463,82.648,82.593,0.1868197]
[1646644858202,61.71401287,82.649,82.593,0.1868197]
[1646644859301,61.71401287,82.649,82.583,23.5198]
[1646644861601,61.71401287,82.649,82.584,120.4]
[1646644862001,61.71401287,82.649,82.583,23.5198]
[1646644862002,61.71401287,82.649,82.586,120.4]
[1646644862502,61.71401287,82.649,82.588,120.4]
[1646644862703,61.71401287,82.649,82.59,120.4]
[1646644862901,61.71401287,82.649,82.592,120.4]
[1646644863102,61.71401287,82.649,82.596,120.4]
[1646644863304,61.71401287,82.649,82.596,126.451]
[1646644863704,61.71401287,82.649,82.601,120.4]
[1646644863903,1.6291134,82.676,82.603,120.4]
[1646644864103,1.6291134,82.676,82.605,120.4]
[1646644864303,1.6291134,82.679,82.605,120.4]
[1646644864502,1.6291134,82.68,82.605,120.4]
[1646644864902,57.0995091,82.679,82.607,120.4]
[1646644865104,55.4703957,82.679,82.609,120.4]
[1646644865302,55.4703957,82.679,82.611,120.4]
[1646644865503,55.4703957,82.679,82.613,120.4]
[1646644866503,55.4703957,82.679,82.609,126.449]
[1646644868409,55.4703957,82.679,82.609,120.4]